[Event "III Menorca Open-A 2024"]
[Site "Ciutadella Menorca"]
[Date "2024.04.06"]
[Round "8.24"]
[White "Huseynova, Lala"]
[Black "Saine, Zachary"]
[Result "0-1"]
[ECO "C63"]
[WhiteElo "1916"]
[BlackElo "2010"]
[Annotator "RC"]
[PlyCount "74"]
[EventDate "2024.04.02"]
[EventType "swiss"]
[EventCountry "ESP"]
[SourceTitle "playchess.com"]
[Source "ChessBase"]
[SourceQuality "1"]
[TimeControl "5400+30"]

1. e4 {[%emt 0:00:07]} e5 {[%emt 0:00:10]} 2. Nf3 {[%emt 0:00:05]} Nc6 {[%emt 0:00:06]} 3. Bb5 {[%emt 0:00:05]} f5 {[%emt 0:00:07]} 4. d3 {[%emt 0:00:06]} fxe4 {[%emt 0:00:05]} 5. dxe4 {[%emt 0:00:06]} Nf6 {[%emt 0:00:07]} 6. O-O {[%emt 0:00:34]} Bc5 {[%emt 0:00:16]} 7. Bxc6 {[%emt 0:00:47]} bxc6 {[%emt 0:00:08]} 8. Nxe5 {[%emt 0:00:09]} O-O {[%emt 0:00:15]} 9. Nc3 {[%emt 0:00:11]} d6 {[%emt 0:00:20]} 10. Na4 {[%emt 0:01:26]} Nxe4 {[%emt 0:07:39]} 11. Nxc5 {[%emt 0:01:06]} Nxc5 {[%emt 0:00:15]} 12. Nxc6 {[%emt 0:00:17]} Qe8 {[%emt 0:00:04]} 13. Nd4 {[%emt 0:00:36]} Qg6 {[%emt 0:01:41]} 14. f3 {[%emt 0:13:16]} a5 {[%emt 0:12:45]} 15. Be3 {[%emt 0:06:31]} Ba6 {[%emt 0:08:02]} 16. Re1 {[%emt 0:01:59]} Bb7 {[%emt 0:00:27]} 17. Bf2 {[%emt 0:08:24]} Rf7 {[%emt 0:09:30]} 18. Qd2 {[%emt 0:14:58]} a4 {[%emt 0:07:22]} 19. Re3 {[%emt 0:10:57]} Raf8 {[%emt 0:04:17]} 20. Rae1 {[%emt 0:02:21]} h5 {[%emt 0:06:18]} 21. Re7 {[%emt 0:07:23]} Bxf3 {[%emt 0:09:08]} 22. Nxf3 {[%emt 0:01:13]} Rxf3 {[%emt 0:00:12]} 23. Qd5+ {[%emt 0:10:27]} Kh7 {[%emt 0:02:33]} 24. Bd4 {[%emt 0:01:30]} R3f7 {[%emt 0:03:53]} 25. Rxf7 {[%emt 0:03:25]} Rxf7 {[%emt 0:00:04]} 26. Qc4 {[%emt 0:09:42]} Ne4 {[%emt 0:01:56]} 27. Qxa4 {[%emt 0:04:40]} c5 {[%emt 0:06:35]} 28. Be3 {[%emt 0:00:33]} d5 {[%emt 0:00:56]} 29. c3 {[%emt 0:00:37]} h4 {[%emt 0:00:17]} 30. Qc2 {[%emt 0:01:01]} h3 {[%emt 0:00:12]} 31. g3 {[%emt 0:00:52]} Rf3 {[%emt 0:01:47]} 32. Qe2 {[%emt 0:00:24]} Qg4 {[%emt 0:00:09]} 33. Kh1 {[%emt 0:00:36]} Qf5 {[%emt 0:03:29]} 34. Bf4 {[%emt 0:00:24]} Rf2 {[%emt 0:00:48]} 35. Qb5 {[%emt 0:00:28]} Nxg3+ {[%emt 0:03:17]} 36. hxg3 {[%emt 0:00:19]} Qc2 {[%emt 0:00:07]} 37. g4 {[%emt 0:00:45]} Rh2+ {[%emt 0:00:06]} 0-1

[Event "III Menorca Open-A 2024"]
[Site "Ciutadella Menorca"]
[Date "2024.04.07"]
[Round "9.1"]
[White "Erigaisi Arjun"]
[Black "Fedoseev, Vladimir"]
[Result "1/2-1/2"]
[WhiteElo "2748"]
[BlackElo "2690"]
[Annotator "TA"]
[PlyCount "16"]
[EventDate "2024.04.02"]
[EventType "swiss"]
[EventCountry "ESP"]
[SourceTitle "playchess.com"]
[Source "ChessBase"]
[SourceQuality "1"]
[TimeControl "5400+30"]

{[%evp 11,16,0,0,0,0,0,29]} 1. e4 {[%emt 0:02:32]} e5 {[%emt 0:00:40]} 2. Nf3 {[%emt 0:00:07]} Nc6 {[%emt 0:00:11]} 3. Nc3 {[%emt 0:00:07]} Nf6 {[%emt 0:00:20]} 4. d4 {[%emt 0:00:05]} exd4 {[%emt 0:00:10]} 5. Nxd4 {[%emt 0:00:05]} Bb4 {[%emt 0:00:45]} 6. Nxc6 {[%emt 0:00:07]} bxc6 {[%emt 0:00:07] The position is equal.} 7. Bd3 {[%emt 0:00:05]} O-O {[%emt 0:00:10][%cal Of6e4]} ({Of course not} 7... Bxc3+ 8. bxc3 Qe7 9. O-O $14) 8. O-O {[%emt 0:00:06]} Re8 {[%emt 0:00:04] Not much happened in this game.   Inaccurate:     	---       	Black=1} 1/2-1/2

[Event "III Menorca Open-A 2024"]
[Site "Ciutadella Menorca"]
[Date "2024.04.07"]
[Round "9.2"]
[White "Alekseenko, Kirill"]
[Black "Warmerdam, Max"]
[Result "1-0"]
[ECO "B90"]
[WhiteElo "2650"]
[BlackElo "2628"]
[Annotator "TA"]
[PlyCount "135"]
[EventDate "2024.04.02"]
[EventType "swiss"]
[EventCountry "ESP"]
[SourceTitle "playchess.com"]
[Source "ChessBase"]
[SourceQuality "1"]
[TimeControl "5400+30"]

{[%evp 13,135,4,18,7,20,0,6,0,0,0,35,28,18,16,24,0,0,0,0,-7,0,0,18,8,21,0,0,0,0,0,0,0,14,-7,18,0,0,-8,12,0,0,0,0,0,0,0,0,-22,0,-31,-19,-27,-25,-50,-35,-72,-62,-68,-68,-95,-94,-139,-136,-124,-62,-263,-262,-222,-225,-208,-114,-108,-25,-16,-21,-31,0,0,0,0,449,429,418,389,532,554,562,564,569,548,645,645,600,579,547,547,530,506,29941,29945,29952,29948,29960,29967,29972,29973,29975,29976,29976,29977,29977,29978,29978,29979,29979,29980,29980,29981,29981,29982,29982,29983,29983,29984]} 1. e4 {[%emt 0:00:03]} c5 {[%emt 0:05:39]} 2. Nf3 {[%emt 0:00:19]} d6 {[%emt 0:00:05]} 3. d4 {[%emt 0:00:51]} cxd4 {[%emt 0:00:06]} 4. Nxd4 {[%emt 0:00:04]} Nf6 {[%emt 0:00:05]} 5. Nc3 {[%emt 0:00:17]} a6 {[%emt 0:00:05]} 6. Bd3 {[%emt 0:01:40]} e5 {[%emt 0:00:07]} 7. Nde2 {[%emt 0:01:23]} Be6 {[%emt 0:01:09]} 8. O-O {[%emt 0:00:50]} Nc6 {[%emt 0:00:13]} 9. a3 {[%emt 0:08:11]} Rc8 {[%emt 0:04:13]} 10. h3 {[%emt 0:01:05] The position is equal.} g6 {[%emt 0:07:59]} 11. Bg5 {[%emt 0:09:09]} h6 {[%emt 0:12:33]} 12. Be3 {[%emt 0:01:39]} (12. Bxf6 {keeps more tension.} Qxf6 13. f4 exf4 14. Nxf4 Qg5 15. Nxe6 fxe6 16. Ne2) 12... Bg7 {[%emt 0:00:46]} 13. Qd2 {[%emt 0:02:57]} h5 {[%emt 0:01:33]} 14. Rfd1 {[%emt 0:03:38]} O-O {[%emt 0:00:56]} 15. Ng3 {[%emt 0:02:02]} Ne7 {[%emt 0:11:07]} 16. Bg5 {[%emt 0:12:24]} Qc7 {[%emt 0:05:00]} 17. Nf1 {[%emt 0:03:13]} Nh7 {[%emt 0:09:19]} 18. Bh4 {[%emt 0:02:44]} Rfd8 {[%emt 0:02:26]} 19. Be2 {[%emt 0:03:26]} Bf6 {[%emt 0:01:12]} 20. Bxf6 {[%emt 0:00:34]} Nxf6 {[%emt 0:00:01]} 21. Qg5 {[%emt 0:01:30]} Kg7 {[%emt 0:00:37]} 22. Ne3 {[%emt 0:02:01]} b5 {[%emt 0:02:19]} 23. Bf1 {[%emt 0:09:23]} Qb7 {[%emt 0:02:16][%cal Oc8c3]} 24. Qh4 {[%emt 0:02:17]} (24. Bd3 {is interesting.} Rd7 25. f4 Rxc3 26. bxc3 Nxe4 27. Bxe4 Qxe4 28. fxe5 dxe5 29. Rxd7 Bxd7 30. Rf1) 24... Rc5 {[%emt 0:00:55]} 25. f3 {[%emt 0:05:50]} a5 {[%emt 0:10:38]} 26. Rd2 {[%emt 0:01:41]} b4 {[%emt 0:01:46]} 27. axb4 {[%emt 0:03:25]} axb4 {[%emt 0:01:04]} 28. Na4 {[%emt 0:00:41]} Rcc8 {[%emt 0:02:36]} 29. Qf2 {[%emt 0:00:45]} Qc7 {[%emt 0:05:05]} 30. c4 {[%emt 0:06:09][%cal Oa4b6]} (30. Nb6 $5 Rb8 $8 (30... Qxb6 $2 {too greedy.} 31. Nf5+ gxf5 32. Qxb6 $18) 31. Ra6 $11) 30... Nc6 {[%emt 0:00:44]} (30... Ra8 $5) 31. Nc2 {[%emt 0:04:42] Inhibits Nd4.} (31. Nb6 $5) 31... Nd7 {[%emt 0:02:37]} 32. Rad1 {[%emt 0:00:38]} Qa5 {[%emt 0:00:40]} 33. b3 {[%emt 0:04:13]} Nc5 {[%emt 0:00:05]} 34. Nxc5 {[%emt 0:02:42]} dxc5 {[%emt 0:00:05]} 35. Rxd8 {[%emt 0:01:23]} Rxd8 {[%emt 0:01:42]} 36. Rxd8 {[%emt 0:00:16]} Nxd8 {[%emt 0:00:04]} 37. f4 {[%emt 0:02:12]} exf4 {[%emt 0:01:06]} 38. Qxf4 {[%emt 0:00:04]} Qa2 {[%emt 0:04:25]} (38... Nc6 $17 {Threatens to win with ...Qa2.} 39. Qd6 Qa2) 39. Ne3 $2 {[%emt 0:00:54]} (39. Ne1 $1 $15) 39... Qxb3 $19 {[%emt 0:03:38]} 40. Qe5+ {[%emt 0:00:04]} f6 {[%emt 0:01:03]} 41. Qxc5 {[%emt 0:00:18]} Qc3 {[%emt 0:00:39]} (41... Nf7 $1 $19 {...Qc3 is the strong threat.} 42. Qb6 Qc3) 42. Nd1 $17 {[%emt 0:01:43] [#]} Qd2 {[%emt 0:01:13]} (42... Qe1 $1 $17 {[%cal Re1d1]} 43. Nb2 Qxe4 44. Qxb4 Qd4+ 45. Kh2 Nf7) 43. Nf2 $11 {[%emt 0:00:54]} Nf7 {[%emt 0:00:38] White must now prevent ...Ne5.} 44. Qb6 $1 {[%emt 0:00:48]} Qd6 {[%emt 0:01:01]} 45. c5 {[%emt 0:00:13]} Qxb6 {[%emt 0:00:26]} 46. cxb6 {[%emt 0:00:04][%mdl 4096] Endgame. KBN-KBN} Nd6 {[%emt 0:00:50][%mdl 8192] [#] Black is on the road to losing.} (46... Bc8 $11 {and Black is okay.}) 47. Ba6 $1 $18 {[%emt 0:00:21][%cal Oe4e5]} b3 {[%emt 0:00:37]} 48. Nd3 {[%emt 0:00:55]} Kf7 {[%emt 0:00:24]} 49. b7 {[%emt 0:00:41]} Nxb7 {[%emt 0:00:01]} 50. Bxb7 {[%emt 0:00:05]} Ke7 {[%emt 0:00:30]} 51. Kf2 {[%emt 0:00:09]} Kd6 {[%emt 0:00:39]} 52. Ke3 {[%emt 0:01:28]} Bc4 {[%emt 0:00:29]} 53. Nb2 {[%emt 0:00:07]} Bf1 {[%emt 0:00:21]} 54. Kf2 {[%emt 0:00:10]} Bb5 {[%emt 0:00:26]} 55. Bd5 {[%emt 0:00:15]} Bc6 {[%emt 0:00:01]} (55... Ke5 $18 56. Bxb3 f5 57. Nc4+ Kd4) 56. Bxc6 {[%emt 0:01:33] White mates.} Kxc6 {[%emt 0:00:01] KN-KP} 57. Ke3 {[%emt 0:00:06]} Kc5 {[%emt 0:01:20]} 58. h4 {[%emt 0:00:51]} Kd6 {[%emt 0:01:24]} 59. Kd4 {[%emt 0:00:57]} g5 {[%emt 0:00:11]} 60. g3 {[%emt 0:00:11]} Ke7 {[%emt 0:00:24]} 61. Nd3 {[%emt 0:00:39]} Kd6 {[%emt 0:00:36]} 62. Kc3 {[%emt 0:01:00]} Ke6 {[%emt 0:00:37]} 63. hxg5 {[%emt 0:00:29]} fxg5 {[%emt 0:00:01][%cal Bf6g5,Bg5h4,Bh4h3,Bh3h2][%mdl 32]} 64. Kxb3 {[%emt 0:00:08]} h4 {[%emt 0:00:46]} 65. gxh4 {[%emt 0:00:03]} gxh4 {[%emt 0:00:03]} 66. Kc4 {[%emt 0:00:17]} h3 {[%emt 0:00:04]} 67. Kd4 {[%emt 0:00:02]} h2 {[%emt 0:00:04]} 68. Nf2 {[%emt 0:00:02] Weighted Error Value: White=0.12 (very precise) /Black=0.43.  Loses game:     	White=1     	Black=1      Mistake:       	---       	Black=4      Inaccurate:     	White=4     	Black=3      OK:         	White=13    	Black=18     Best:        	White=6     	Black=3      Strong:       	White=2     	---} 1-0

[Event "III Menorca Open-A 2024"]
[Site "Ciutadella Menorca"]
[Date "2024.04.07"]
[Round "9.3"]
[White "Dardha, Daniel"]
[Black "Chigaev, Maksim"]
[Result "0-1"]
[ECO "D36"]
[WhiteElo "2628"]
[BlackElo "2617"]
[Annotator "TA"]
[PlyCount "118"]
[EventDate "2024.04.02"]
[EventType "swiss"]
[EventCountry "ESP"]
[SourceTitle "playchess.com"]
[Source "ChessBase"]
[SourceQuality "1"]
[TimeControl "5400+30"]

{[%evp 15,118,20,26,19,22,20,20,-20,-23,-112,-118,-137,-121,-118,-67,-62,-113,-99,-74,-58,-94,-127,-125,-139,-151,-141,-150,-135,-145,-133,-144,-143,-132,-133,-146,-160,-146,-160,-147,-160,-162,-157,-152,-163,-152,-165,-148,-174,-154,-153,-154,-185,-170,-219,-217,-218,-214,-214,-203,-197,-229,-233,-210,-232,-232,-238,-237,-466,-466,-466,-452,-423,29988,-429,-429,-372,-332,-476,-446,-391,-327,-327,-333,-856,-883,-1820,-1659,-3993,-4134,-4590,-4067,-29974,-29974,-29976,-29975,-29978,-29979,-29979,-29980,-29980,-29981,-29983,-29984,-29984,-29985]} 1. d4 {[%emt 0:00:04]} Nf6 {[%emt 0:00:08]} 2. c4 {[%emt 0:00:12]} e6 {[%emt 0:00:41]} 3. Nf3 {[%emt 0:00:33]} d5 {[%emt 0:00:26]} 4. Bg5 {[%emt 0:01:44]} Be7 {[%emt 0:00:07]} 5. cxd5 {[%emt 0:01:29]} exd5 {[%emt 0:00:36]} 6. Nc3 {[%emt 0:00:12]} c6 {[%emt 0:05:55]} 7. Qc2 {[%emt 0:03:04]} O-O {[%emt 0:02:37]} 8. e3 {[%emt 0:00:46]} h6 {[%emt 0:01:42]} 9. Bf4 {[%emt 0:04:03]} Nh5 {[%emt 0:04:08]} (9... Bd6 {simplifies} 10. Bxd6 Qxd6 11. Bd3 b6) 10. Be5 {[%emt 0:06:37]} Nd7 {[%emt 0:01:30]} 11. g4 {[%emt 0:07:27] The position is equal.} Nxe5 {[%emt 0:00:08]} 12. dxe5 {[%emt 0:01:01]} (12. Nxe5 $11 {remains equal.} Nf6 13. h3) 12... Bxg4 $17 {[%emt 0:00:57]} 13. Nd4 {[%emt 0:08:14]} c5 {[%emt 0:04:18]} 14. Nf5 {[%emt 0:03:14]} d4 {[%emt 0:03:58]} (14... Qd7 $17 15. Nxe7+ Qxe7) 15. Rg1 $1 $15 {[%emt 0:01:41]} Bxf5 {[%emt 0:00:53]} 16. Qxf5 {[%emt 0:00:04][%cal Of1d3]} Bg5 {[%emt 0:00:05]} (16... dxc3 $2 17. Bd3 $18) (16... dxe3 {looks sharper.} 17. fxe3 Bh4+ 18. Ke2 Qb6) 17. O-O-O {[%emt 0:13:32] h4 is the strong threat.} Qc8 $36 {[%emt 0:20:16][%mdl 2048] White is under strong pressure.} 18. Qxc8 {[%emt 0:01:42]} Raxc8 {[%emt 0:00:08]} 19. Nd5 {[%emt 0:05:55][%cal Oh2h4]} Rcd8 $1 {[%emt 0:08:39]} 20. f4 {[%emt 0:03:24][%cal Bf2f4,Bf4g5,Bg5h6][%mdl 32]} Rxd5 {[%emt 0:00:06]} 21. fxg5 {[%emt 0:00:04]} Rxe5 {[%emt 0:00:22]} 22. exd4 {[%emt 0:05:49]} cxd4 {[%emt 0:00:19]} (22... Rxg5 23. Rxg5 hxg5 24. dxc5 $15) 23. gxh6 {[%emt 0:00:04]} Rc8+ {[%emt 0:00:50]} 24. Kb1 {[%emt 0:00:10][%cal Oh6g7]} g6 {[%emt 0:00:04]} 25. Bg2 {[%emt 0:00:20]} Rc7 {[%emt 0:01:14]} 26. Bf3 {[%emt 0:05:07]} Kh7 {[%emt 0:01:24]} 27. Rxd4 {[%emt 0:00:13]} Kxh6 {[%emt 0:00:23]} 28. Rc1 {[%emt 0:00:50]} Ree7 {[%emt 0:01:52]} 29. Rf1 {[%emt 0:02:04]} Rcd7 {[%emt 0:01:28]} 30. Rc4 {[%emt 0:02:00]} Rd6 {[%emt 0:01:15]} 31. Rfc1 {[%emt 0:02:31]} Rf6 {[%emt 0:01:56]} 32. R1c3 {[%emt 0:00:46]} b6 {[%emt 0:01:15]} 33. Rc8 {[%emt 0:02:00]} Nf4 {[%emt 0:03:17]} 34. a4 {[%emt 0:00:42]} (34. a3 {keeps fighting.}) 34... Re1+ $19 {[%emt 0:05:58]} 35. Ka2 {[%emt 0:02:34]} Ne2 {[%emt 0:00:13]} 36. Bxe2 {[%emt 0:01:19]} Rxe2 {[%emt 0:00:03][%mdl 4096] Endgame. KRR-KRR} 37. Rh3+ {[%emt 0:02:38]} Kg7 {[%emt 0:00:58]} 38. Rc7 {[%emt 0:02:28]} a5 {[%emt 0:02:56]} 39. Rb7 {[%emt 0:00:04]} Re4 {[%emt 0:03:44]} 40. Ka3 {[%emt 0:04:27]} Rff4 {[%emt 0:03:03]} 41. Rxb6 $2 {[%emt 0:00:47]} (41. b3 {was called for.} Rf6 42. Rb8) 41... Rxa4+ {[%emt 0:00:09]} 42. Kb3 {[%emt 0:00:02]} Rab4+ {[%emt 0:01:00]} 43. Rxb4 {[%emt 0:00:04] [#]} Re4 {[%emt 0:20:59][%mdl 8192] [#]} 44. Kc3 $4 {[%mdl 8192]} Rxb4 {[%emt 0:00:00] KR-KR} (44... axb4+ $2 45. Kd3 f5 46. Rg3 $19) 45. b3 {[%emt 0:01:43]} f5 {[%emt 0:00:00]} 46. Rg3 {[%emt 0:09:46]} (46. Rd3 {is a better defense.} Rb5 47. Rd7+ Kf6 48. Rd3) 46... Re4 47. Rd3 {[%emt 0:00:00]} f4 {[%emt 0:00:00]} 48. Rd5 {[%emt 0:00:00]} f3 {[%emt 0:00:00] Strongly threatening ...f2.} 49. Rd2 {[%emt 0:00:00]} (49. Rd1) 49... Kf6 {[%emt 0:00:00] ...Ke5 would now be deadly.} 50. Rf2 {[%emt 0:00:01]} Re3+ {[%emt 0:00:00]} 51. Kd4 {[%emt 0:00:07]} Rxb3 {[%emt 0:00:00]} 52. Ra2 {[%emt 0:02:52]} Kf5 {[%emt 0:00:00]} 53. Rxa5+ {[%emt 0:00:07]} Kg4 {[%emt 0:05:00] Black mates.} 54. Ra2 {[%emt 0:00:46]} g5 {[%emt 0:00:00]} 55. Ke4 {[%emt 0:00:28]} Kh3 {[%emt 0:00:00]} 56. Kf5 {[%emt 0:01:27]} g4 {[%emt 0:00:00]} 57. Kf4 {[%emt 0:00:24]} Rb8 {[%emt 0:00:00]} 58. Ke3 {[%emt 0:01:44]} Re8+ {[%emt 0:00:00]} 59. Kf4 {[%emt 0:01:22]} Rf8+ {[%emt 0:00:00] Never resign too early!   Weighted Error Value: White=0.69/Black=0.17 (very precise) .  Missed win:     	White=1     	Black=1      Mistake:       	White=5     	Black=1      Inaccurate:     	White=2     	---        OK:         	White=16    	Black=17     Best:        	White=3     	Black=5      Strong:       	White=1     	Black=1} 0-1

[Event "III Menorca Open-A 2024"]
[Site "Ciutadella Menorca"]
[Date "2024.04.07"]
[Round "9.4"]
[White "Aravindh, Chithambaram VR."]
[Black "Yuffa, Daniil"]
[Result "1/2-1/2"]
[ECO "B22"]
[WhiteElo "2662"]
[BlackElo "2606"]
[Annotator "TA"]
[PlyCount "23"]
[EventDate "2024.04.02"]
[EventType "swiss"]
[EventCountry "ESP"]
[SourceTitle "playchess.com"]
[Source "ChessBase"]
[SourceQuality "1"]
[TimeControl "5400+30"]

{[%evp 9,23,33,33,1,7,-2,0,0,0,-14,-27,-6,-8,-11,11,18]} 1. e4 {[%emt 0:00:32]} c5 {[%emt 0:00:08]} 2. c3 {[%emt 0:00:09]} d5 {[%emt 0:00:26]} 3. exd5 {[%emt 0:00:08]} Nf6 {[%emt 0:00:06]} 4. Qa4+ {[%emt 0:00:40]} Nbd7 {[%emt 0:06:51]} 5. Qb3 {[%emt 0:00:10]} a6 {[%emt 0:10:52]} 6. c4 {[%emt 0:11:16]} Ne5 {[%emt 0:11:11]} 7. Be2 {[%emt 0:09:54]} e6 {[%emt 0:03:27]} 8. Nf3 {[%emt 0:00:07]} Bd6 {[%emt 0:00:18]} 9. O-O {[%emt 0:11:51]} exd5 {[%emt 0:09:14]} 10. cxd5 {[%emt 0:04:51]} O-O {[%emt 0:02:12][%cal Oc5c4]} 11. d4 {[%emt 0:00:06]} cxd4 {[%emt 0:07:35]} 12. Nxd4 {[%emt 0:02:38] Not much happened in this game.   Weighted Error Value: White=0.10 (very precise) /Black=0.04 (flawless) .  OK:         	White=1     	Black=4      Best:        	---       	Black=1} 1/2-1/2

[Event "III Menorca Open-A 2024"]
[Site "Ciutadella Menorca"]
[Date "2024.04.07"]
[Round "9.5"]
[White "Sosa, Tomas"]
[Black "Van Foreest, Jorden"]
[Result "1/2-1/2"]
[ECO "A14"]
[WhiteElo "2562"]
[BlackElo "2672"]
[Annotator "TA"]
[PlyCount "90"]
[EventDate "2024.04.02"]
[EventType "swiss"]
[EventCountry "ESP"]
[SourceTitle "playchess.com"]
[Source "ChessBase"]
[SourceQuality "1"]
[TimeControl "5400+30"]

{[%evp 13,90,2,-8,-5,12,23,14,0,20,0,50,32,54,36,37,22,22,23,19,14,23,-25,-46,-27,-35,-32,8,9,1,-14,-16,-22,-21,-16,-13,-14,0,0,0,0,0,0,0,0,0,0,0,0,0,0,7,0,0,0,6,6,6,5,6,6,6,4,4,4,4,0,6,0,0,0,0,0,0,0,0,0,0,0,0]} 1. Nf3 {[%emt 0:00:03]} Nf6 {[%emt 0:03:51]} 2. g3 {[%emt 0:00:25]} d5 {[%emt 0:01:25]} 3. Bg2 {[%emt 0:00:24]} e6 {[%emt 0:02:13]} 4. O-O {[%emt 0:02:31]} Be7 {[%emt 0:00:05]} 5. c4 {[%emt 0:00:43]} O-O {[%emt 0:00:22]} 6. b3 {[%emt 0:01:03]} c5 {[%emt 0:00:44]} 7. e3 {[%emt 0:04:52]} Nc6 {[%emt 0:00:48]} 8. d3 {[%emt 0:00:07]} h6 {[%emt 0:06:10]} 9. Qe2 {[%emt 0:02:30]} e5 {[%emt 0:00:20]} 10. cxd5 {[%emt 0:02:23]} Nxd5 {[%emt 0:00:54]} 11. Bb2 {[%emt 0:00:12]} Bf6 {[%emt 0:03:33]} (11... Qd6 $11) 12. Nbd2 $14 {[%emt 0:06:46]} b6 {[%emt 0:08:33]} 13. Ne4 {[%emt 0:05:20]} Ba6 {[%emt 0:01:51]} 14. Nfd2 {[%emt 0:09:11] [#] Nxf6+ would now be deadly.} Be7 {[%emt 0:15:17]} 15. Nc4 {[%emt 0:01:56]} Qd7 $1 {[%emt 0:04:00]} 16. Rad1 {[%emt 0:13:10]} (16. Bxe5 b5 17. Bb2 f5) 16... Qe6 {[%emt 0:01:26]} 17. g4 {[%emt 0:06:09]} (17. f4 $142) 17... Rad8 $11 {[%emt 0:02:55]} 18. a3 {[%emt 0:02:49]} b5 {[%emt 0:11:35]} 19. Ncd2 {[%emt 0:02:12]} Nb6 {[%emt 0:00:08]} 20. Rc1 {[%emt 0:06:02][%cal Bd1c1,Bc1c2,Bc2b2,Bb2b7][%mdl 32] The position is equal.} c4 {[%emt 0:00:18]} 21. bxc4 {[%emt 0:12:11]} bxc4 {[%emt 0:00:27]} 22. Nxc4 {[%emt 0:00:11]} Nxc4 {[%emt 0:00:27]} 23. dxc4 {[%emt 0:00:05]} Na5 {[%emt 0:00:13]} 24. Nd2 {[%emt 0:00:09]} Rb8 {[%emt 0:05:17]} 25. Rc2 {[%emt 0:01:25]} ({Don't go for} 25. Bd5 $2 Qxd5 26. cxd5 Bxe2 $19) 25... Nxc4 {[%emt 0:00:42]} 26. Nxc4 {[%emt 0:01:02][%cal Of1c1] [#] Rfc1! is the strong threat.} Rxb2 {[%emt 0:00:07]} 27. Rxb2 {[%emt 0:00:25] Strongly threatening Rc2.} Bxc4 {[%emt 0:00:06] A strong pair of Bishops.} (27... Qxc4 $2 {is the wrong capture.} 28. Qxc4 Bxc4 29. Ra1 $18) 28. Qf3 {[%emt 0:01:07]} Bxf1 {[%emt 0:00:07]} ({But not} 28... Bxa3 29. Rb7 $16) 29. Bxf1 {[%emt 0:00:05]} Bxa3 {[%emt 0:02:21]} 30. Rb7 {[%emt 0:01:08]} a5 {[%emt 0:06:45]} 31. Qe4 {[%emt 0:00:51]} Rc8 {[%emt 0:03:56]} 32. Rb5 {[%emt 0:00:39]} (32. Ra7 {is interesting.} Bb4 33. h4 Rc1 34. Kg2) 32... Bb4 {[%emt 0:00:15]} (32... Rc5 {feels hotter.} 33. Rb8+ Rc8 34. Bc4 Qd7) 33. Rxe5 {[%emt 0:00:14]} Qc6 {[%emt 0:00:04]} 34. Qxc6 {[%emt 0:03:41]} Rxc6 {[%emt 0:00:05][%mdl 4096] Endgame. KRB-KRB} 35. Re8+ {[%emt 0:00:03]} Kh7 {[%emt 0:00:05]} 36. Ra8 {[%emt 0:00:45]} Rc7 {[%emt 0:00:05]} 37. Bd3+ {[%emt 0:01:52]} g6 {[%emt 0:00:05]} 38. Kg2 {[%emt 0:00:07]} Kg7 {[%emt 0:00:11]} 39. Ra6 {[%emt 0:00:59]} Be1 {[%emt 0:01:19]} 40. Kf3 {[%emt 0:00:31]} Rd7 {[%emt 0:00:16]} 41. Ke2 {[%emt 0:01:29]} Bxf2 {[%emt 0:01:58]} 42. Bxg6 {[%emt 0:02:09]} fxg6 {[%emt 0:00:21]} 43. Kxf2 {[%emt 0:00:05]} Rd2+ {[%emt 0:00:06]} 44. Kg3 {[%emt 0:00:05]} Re2 {[%emt 0:00:11]} 45. Rxa5 {[%emt 0:00:06]} Rxe3+ {[%emt 0:00:04] Weighted Error Value: White=0.04 (flawless) /Black=0.05 (flawless) .  Mistake:       	White=1     	Black=1      Inaccurate:     	---       	Black=1      OK:         	White=20    	Black=17     Best:        	White=1     	Black=2      Strong:       	---       	Black=1} 1/2-1/2